bitfinex-derivatives/quotes_ETHF0:USTF0_20250103
["timestamp","ask_amount","ask_price","bid_price","bid_amount"]
[1735911095139,3.2078,3487.0,3486.2,3.2078]
[1735911095335,0.28707,3486.4,3486.2,3.2078]
[1735911095537,0.71757,3486.9,3486.2,3.2078]
[1735911095736,0.28706,3486.5,3486.4,0.28706]
[1735911096642,0.71757,3486.9,3486.2,3.2078]
[1735911096934,2.6806641,3487.1,3485.7,0.03297521]
[1735911096935,0.28712,3485.8,3485.7,0.03297521]
[1735911097538,0.28712,3485.8,3485.7,0.32010521]
[1735911097731,3.2078,3486.1,3485.7,0.03297521]
[1735911097938,0.28712,3485.8,3485.7,0.32009521]
[1735911098136,0.28712,3485.8,3485.7,0.03297521]
[1735911098532,0.28712,3485.8,3485.7,0.32009521]
[1735911099137,0.28712,3485.8,3485.7,0.03297521]
[1735911099444,3.2078,3486.2,3485.7,0.03297521]
[1735911099744,0.28711,3485.9,3485.8,0.28711]
[1735911100937,0.28712,3485.8,3485.7,0.32009521]
[1735911101134,3.2078,3486.2,3485.7,0.32009521]
[1735911101135,0.28711,3485.9,3485.8,0.28711]
[1735911101339,0.28708,3486.3,3486.2,0.28708]
[1735911101532,0.28708,3486.3,3485.7,0.75078521]
[1735911101533,0.2871,3486.1,3486.0,0.2871]
[1735911101931,2.6806641,3486.3,3485.7,0.03297521]
[1735911102138,0.28711,3485.9,3485.8,0.28711]
[1735911102534,0.28712,3485.8,3485.7,0.32009521]
[1735911103238,0.28712,3485.9,3485.8,0.28711]
[1735911103742,2.6806641,3486.3,3485.7,0.03297521]
[1735911104045,2.83367896,3505.6,3485.7,0.03297521]
[1735911104046,0.71756,3487.0,3486.4,0.28706]
[1735911104242,0.28706,3486.6,3486.5,0.28705]
[1735911104848,0.28708,3486.3,3486.2,0.28708]
[1735911105038,2.6806641,3486.7,3485.7,0.03297521]
[1735911105239,0.28708,3486.3,3485.7,0.03297521]
[1735911105444,0.28708,3486.3,3486.1,0.28709]
[1735911105644,0.28708,3486.2,3486.1,0.28709]
[1735911105844,2.6806641,3486.7,3485.7,0.03297521]
[1735911106047,2.6806641,3486.7,3486.3,0.28707]
[1735911106048,0.28707,3486.4,3486.3,0.28707]
[1735911106249,0.28709,3486.3,3486.2,0.28708]
[1735911106950,0.28707,3486.5,3486.4,0.28705]
[1735911107150,3.49484,3486.8,3486.7,0.28704]
[1735911107456,3.2078,3486.8,3486.7,0.28704]
[1735911107649,40.8,3487.4,3486.6,3.2078]
[1735911107843,0.287,3487.3,3487.2,0.28699]
[1735911108148,0.28696,3487.8,3487.7,0.28695]
[1735911108456,40.8,3487.8,3487.2,3.2078]
[1735911108747,0.28691,3488.4,3487.7,3.2078]
[1735911108947,2.6806641,3488.3,3487.7,3.2078]
[1735911109149,40.8,3488.2,3487.8,0.28695]
[1735911109453,40.8,3488.2,3487.5,3.2078]
[1735911109641,40.8,3488.2,3488.1,0.28693]
[1735911109846,0.28692,3488.3,3488.1,0.28693]
[1735911110041,0.28692,3488.3,3487.5,0.71745]
[1735911110042,3.2078,3488.5,3487.8,3.2078]
[1735911110348,40.8,3488.4,3488.3,0.28691]
[1735911110547,41.0869,3488.4,3488.3,0.28691]
[1735911110845,41.0869,3488.4,3487.8,3.92517]
[1735911110846,0.28692,3488.2,3488.1,0.28692]
[1735911111051,0.28692,3488.2,3488.1,0.28693]
[1735911111253,3.2078,3488.5,3488.1,0.28693]
[1735911111551,0.28692,3488.2,3488.1,0.28693]
[1735911112048,3.2078,3488.5,3487.8,3.2078]
[1735911112252,0.28692,3488.2,3487.8,3.2078]
[1735911112549,3.2078,3488.5,3488.2,0.28691]
[1735911112550,0.2869,3488.4,3488.2,0.28691]
[1735911112742,3.2078,3488.5,3488.1,0.28693]
[1735911112743,0.28692,3488.2,3488.1,0.28693]
[1735911112945,0.28692,3488.2,3488.0,0.28693]
[1735911113244,3.2078,3488.5,3487.8,3.2078]
[1735911113444,0.28696,3487.7,3487.5,0.28697]
[1735911113750,0.28696,3487.7,3487.6,0.28697]
[1735911114144,3.2078,3487.7,3487.0,3.2078]
[1735911114348,3.2078,3487.7,3486.6,3.2078]
[1735911114538,0.71743,3487.6,3486.6,3.2078]
[1735911114746,0.28702,3487.0,3486.6,3.2078]
[1735911114958,0.28702,3487.0,3486.9,0.28703]
[1735911115140,3.2078,3487.2,3486.2,1.2]
[1735911115345,3.2078,3487.2,3486.6,0.28705]
[1735911115346,0.28704,3486.7,3486.6,0.28705]
[1735911115850,3.92531,3487.2,3486.2,1.2]
[1735911116050,0.28704,3486.8,3486.7,0.28704]
[1735911116653,0.28702,3487.1,3487.0,0.28701]
[1735911118455,3.2078,3487.4,3486.5,3.92544]
[1735911118656,3.2078,3487.4,3487.1,0.287]
[1735911118657,0.28701,3487.2,3487.1,0.287]
[1735911120659,3.49479,3487.4,3487.3,0.28699]
[1735911120950,0.28702,3487.0,3486.9,0.28702]
[1735911121148,0.287,3487.3,3487.2,0.287]
[1735911121350,0.28699,3487.4,3487.3,0.28699]
[1735911121950,0.28698,3487.5,3487.4,0.28698]
[1735911122152,0.28697,3487.6,3487.1,0.28701]
[1735911122352,0.28697,3487.6,3487.0,0.71755]
[1735911122353,44.0078,3487.8,3487.0,0.71755]
[1735911122551,3.2078,3487.8,3487.7,0.28696]
[1735911122755,0.28696,3487.7,3487.6,0.28696]
[1735911123352,41.08696,3487.8,3487.7,0.28696]
[1735911123553,40.8,3487.8,3487.7,0.28696]
[1735911124059,3.2078,3488.2,3487.3,3.2078]
[1735911124358,40.8,3488.1,3487.3,3.2078]
[1735911124557,3.2078,3487.8,3486.5,3.2078]
[1735911124862,3.2078,3487.8,3487.1,0.28701]
[1735911124863,1.0044,3487.6,3487.1,0.28701]
[1735911125151,0.28701,3487.2,3487.1,0.28701]
[1735911125558,0.28701,3487.1,3487.0,0.28701]
[1735911125956,0.287,3487.2,3487.1,0.28701]
[1735911126353,0.28702,3487.0,3486.9,0.28702]
[1735911126652,3.2078,3487.0,3486.0,0.71774]
[1735911127049,3.2078,3487.0,3486.2,0.71772]
[1735911127254,0.28704,3486.8,3486.7,0.28704]
[1735911127955,3.2078,3487.2,3486.3,3.2078]
[1735911128160,0.28704,3486.8,3486.7,0.28704]
[1735911128354,0.28709,3486.2,3485.8,0.28712]
[1735911128551,0.28712,3485.8,3485.7,0.32009521]
[1735911128756,0.28711,3485.9,3485.8,0.28711]
[1735911129152,0.2871,3486.0,3485.9,0.2871]
[1735911129352,3.2078,3486.3,3485.7,0.03297521]
[1735911129651,0.28707,3486.4,3486.3,0.28707]
[1735911129855,3.2078,3486.7,3485.8,3.2078]
[1735911130049,0.28705,3486.7,3486.6,0.28704]
[1735911130257,0.28704,3486.8,3486.7,0.28704]
[1735911130458,0.28705,3486.7,3486.6,0.28704]
[1735911131059,2.2411149,3486.9,3486.5,0.28705]
[1735911131060,0.28706,3486.6,3486.5,0.28705]
[1735911132458,0.28708,3486.3,3486.2,3.49488]
[1735911132654,0.28707,3486.4,3486.3,0.28706]
[1735911133256,0.2871,3486.2,3486.1,0.28709]
[1735911133456,0.71764,3486.6,3485.6,5.12563]
[1735911133656,0.2871,3486.1,3486.0,0.28709]
[1735911134165,0.28709,3486.2,3486.1,0.28708]
[1735911136061,0.28711,3486.1,3486.0,0.2871]
[1735911136962,0.28707,3486.4,3486.3,0.28707]
[1735911137453,0.28706,3486.5,3486.4,0.28705]
[1735911137765,0.28708,3486.4,3486.3,0.28707]
[1735911141067,5.4489149,3486.8,3486.0,3.92556]
[1735911141461,5.4489149,3486.8,3486.7,0.28704]
[1735911141965,3.2078,3486.8,3486.7,0.28704]
[1735911142262,3.49483,3486.8,3486.7,0.28704]
[1735911142766,0.28703,3486.8,3486.7,0.28704]
[1735911145866,0.28703,3486.8,3486.4,0.71767]
[1735911145867,40.8,3487.0,3486.4,3.2078]
[1735911146058,5.4489149,3487.2,3487.1,0.28701]
[1735911146059,2.2411149,3487.2,3487.1,0.28701]
[1735911146261,2.20134521,3487.2,3487.1,7.53362347]
[1735911146467,0.66229531,3487.2,3487.1,7.53362347]
[1735911146765,0.14286823,3487.3,3487.2,0.287]
[1735911146962,3.35318551,3487.5,3487.4,0.28699]
[1735911147155,3.37207587,3488.1,3487.7,0.71741]
[1735911147362,3.37207587,3488.1,3488.0,0.28694]
[1735911147567,3.37207587,3488.1,3488.0,2.53355347]
[1735911148056,3.37207587,3488.1,3488.0,0.28694]
[1735911148665,3.37207587,3488.1,3488.0,7.97252894]
[1735911148873,0.28685,3489.1,3489.0,0.28685]
[1735911149367,3.92484,3489.6,3488.5,3.92504]
[1735911149872,0.28685,3489.1,3489.0,0.28685]
[1735911150462,3.92484,3489.6,3489.0,0.28685]
[1735911150771,0.28685,3489.1,3489.0,0.28685]
[1735911150970,3.2078,3489.6,3488.5,3.92504]
[1735911151268,0.28682,3489.4,3489.3,0.28682]
[1735911151463,43.48558894,3489.9,3488.9,3.2078]
[1735911151668,40.8,3489.9,3488.9,3.2078]
[1735911151971,0.28679,3489.8,3489.3,3.2078]
[1735911152174,3.49458,3490.0,3489.3,3.92488]
[1735911152473,3.2078,3490.0,3489.6,0.2868]
[1735911152668,40.8,3489.9,3489.4,0.28682]
[1735911152868,40.8,3489.9,3489.5,0.28681]
[1735911153067,0.2868,3489.7,3489.5,0.28681]
[1735911153365,0.2868,3489.6,3489.5,0.28681]
[1735911153567,40.8,3489.9,3489.3,3.2078]
[1735911153763,0.2868,3489.7,3489.6,0.2868]
[1735911153963,40.8,3489.9,3489.3,3.2078]
[1735911154166,0.28682,3489.4,3489.3,3.49463]
[1735911154570,40.8,3489.9,3489.3,3.49463]
[1735911154873,0.28682,3489.4,3489.3,3.2078]
[1735911155071,40.8,3489.9,3489.3,3.2078]
[1735911155269,0.28682,3489.4,3489.3,3.49463]
[1735911155465,40.8,3489.9,3489.3,3.2078]
[1735911156474,41.08678,3489.9,3489.7,0.28679]
[1735911156671,40.8,3489.9,3489.8,0.28679]
[1735911156867,3.2078,3490.4,3489.3,3.2078]
[1735911157067,0.28676,3490.1,3489.9,0.28677]
[1735911157366,41.08676,3490.1,3489.9,0.28677]
[1735911157767,41.08676,3490.1,3490.0,0.28677]
[1735911157972,40.8,3490.1,3490.0,0.28677]
[1735911158169,3.2078,3490.4,3489.7,3.2078]
[1735911158367,3.2078,3490.4,3490.3,0.28675]
[1735911158562,44.0078,3490.4,3490.3,0.28675]
[1735911159361,40.8,3490.4,3490.3,0.28675]
[1735911159766,0.28673,3490.6,3490.4,0.28673]
[1735911159982,0.28673,3490.6,3490.3,0.28674]
[1735911160370,40.8,3490.8,3490.0,2.68558894]
[1735911160571,0.28671,3490.7,3490.3,0.28675]
[1735911160778,0.28676,3490.2,3490.0,0.28677]
[1735911161079,0.28678,3490.0,3489.8,0.28678]
[1735911161270,0.28678,3490.0,3489.9,0.28678]
[1735911161576,3.92463,3490.5,3489.9,0.28678]
[1735911161781,3.2078,3490.5,3489.7,3.2078]
[1735911162071,3.2078,3490.0,3489.3,3.2078]
[1735911162272,3.2078,3489.6,3488.9,3.2078]
[1735911162872,0.28682,3489.5,3489.4,0.28681]
[1735911163075,0.28681,3489.6,3489.5,0.2868]
[1735911163675,0.28682,3489.5,3489.4,0.28681]
[1735911163978,0.71694,3490.0,3488.9,3.2078]
[1735911163979,0.28683,3489.4,3489.3,0.28682]
[1735911164776,0.28682,3489.5,3489.4,0.28681]
[1735911164976,0.28681,3489.6,3489.5,0.28681]
[1735911165478,40.8,3489.8,3489.0,0.71714]
[1735911165680,3.2078,3490.1,3489.4,3.2078]
[1735911165877,0.28676,3490.2,3490.1,0.28676]
[1735911166073,0.28676,3490.3,3490.2,0.28675]
[1735911166378,3.2078,3490.9,3490.5,0.28672]
[1735911166678,0.28673,3490.6,3490.5,0.28672]
[1735911167582,40.8,3490.8,3490.2,3.2078]
[1735911167871,40.8,3490.8,3490.7,0.28671]
[1735911168078,0.28672,3490.7,3490.6,0.28672]
[1735911168480,41.08671,3490.8,3490.7,0.28671]
[1735911169383,40.8,3490.8,3490.2,3.2078]
[1735911169683,0.28672,3490.7,3490.6,0.28672]
[1735911170279,40.8,3490.8,3490.2,3.2078]
[1735911170587,0.28673,3490.6,3490.5,0.28673]
[1735911170887,0.28675,3490.3,3490.2,0.28675]
[1735911171183,0.28679,3489.8,3489.7,0.28679]
[1735911171384,0.28679,3489.8,3489.3,3.2078]
[1735911171385,0.2868,3489.7,3489.6,0.2868]
[1735911171587,3.92472,3490.1,3489.3,3.2078]
[1735911171588,0.28682,3489.5,3489.4,0.28681]
[1735911171780,3.92472,3490.1,3489.3,3.2078]
[1735911171984,0.2868,3489.7,3489.6,0.2868]
[1735911172277,0.28678,3490.0,3489.9,0.28678]
[1735911172483,40.8,3490.0,3489.9,0.28678]
[1735911172886,0.28675,3490.3,3490.2,0.28675]
[1735911173682,40.8,3490.6,3489.9,0.71696]
[1735911173883,40.8,3490.6,3490.5,0.28673]
[1735911174086,0.28671,3490.8,3490.7,0.28671]
[1735911174696,40.8,3491.0,3490.2,0.71688]
[1735911174995,0.28672,3490.7,3490.6,0.28672]
[1735911176984,40.8,3491.0,3490.7,0.2867]
[1735911176985,0.28671,3490.8,3490.7,0.2867]
[1735911177190,0.28672,3490.7,3490.6,0.28671]
[1735911177391,0.28673,3490.6,3490.5,0.28672]
[1735911177592,0.28672,3490.7,3490.6,0.28672]
[1735911177892,0.28672,3490.7,3489.8,1.187]
[1735911177893,0.28678,3490.0,3489.9,0.28677]
[1735911178081,3.2078,3490.3,3489.3,1.187]
[1735911178278,3.2078,3490.3,3489.4,0.71705]
[1735911178480,0.28678,3490.0,3489.9,0.28677]
[1735911178687,0.2868,3489.8,3489.7,0.28679]
[1735911178886,3.2078,3490.3,3489.5,3.2078]
[1735911179299,0.2868,3489.7,3489.6,0.2868]
[1735911180287,0.28678,3490.0,3489.9,0.28677]
[1735911180586,0.2868,3489.8,3489.7,0.28679]
[1735911181287,0.7169,3490.2,3489.3,0.71707]
[1735911181591,3.2078,3490.3,3489.5,3.92482]
[1735911181794,0.28676,3490.2,3490.1,0.28675]
[1735911182897,0.28673,3490.6,3490.5,0.28672]
[1735911183197,0.28672,3490.7,3490.6,0.28671]
[1735911184090,0.28674,3490.5,3490.4,0.28672]
[1735911184393,0.28674,3490.4,3490.3,0.28673]
[1735911185289,40.8,3491.0,3490.3,3.92466]
[1735911185593,0.28671,3490.8,3490.7,0.2867]
[1735911186392,40.8,3491.0,3490.3,3.2078]
[1735911186594,0.28671,3490.8,3490.7,0.28671]
[1735911186797,40.8,3491.0,3490.3,3.2078]
[1735911186999,0.28674,3490.5,3490.4,0.28673]
[1735911187296,0.28671,3490.8,3490.7,0.28671]
[1735911187794,0.28672,3490.7,3490.6,0.28672]
[1735911189498,40.8,3491.0,3490.3,3.2078]
[1735911189700,0.28671,3490.8,3490.7,0.28671]
[1735911190096,40.8,3491.0,3490.3,3.92466]
[1735911190293,0.2867,3490.9,3490.8,0.2867]
[1735911190696,0.28672,3490.8,3490.7,0.28671]
[1735911190896,0.28673,3490.6,3490.5,0.28672]
[1735911191598,0.28672,3490.7,3490.6,0.28671]
[1735911191999,40.8,3491.0,3490.3,3.2078]
[1735911192298,40.8,3491.0,3490.2,0.28675]
[1735911192299,0.28676,3490.3,3490.2,0.28675]
[1735911192692,3.2078,3490.5,3489.9,3.2078]
[1735911192693,2.243826,3490.4,3489.9,3.2078]
[1735911192893,3.2078,3490.1,3489.6,4.41465521]
[1735911193092,0.2868,3489.7,3489.6,4.41465521]
[1735911193300,0.2868,3489.7,3489.3,3.2078]
[1735911193301,0.2868,3489.6,3489.5,4.41465521]
[1735911193495,41.0868,3489.6,3489.5,4.41465521]
[1735911193695,0.2868,3489.6,3489.5,4.41465521]
[1735911194094,41.0868,3489.6,3489.5,4.70146521]
[1735911194292,41.0868,3489.6,3489.5,4.41465521]
[1735911195100,41.0868,3489.6,3489.1,2.530666]
[1735911195101,0.28684,3489.2,3489.1,2.530666]
[1735911195494,40.8,3489.6,3488.9,3.2078]
[1735911195692,0.28686,3488.9,3488.8,4.70151521]
[1735911195899,0.28686,3489.0,3488.9,0.28686]
[1735911196102,3.2078,3489.3,3488.8,4.41465521]
[1735911196300,0.28686,3488.9,3488.8,4.70152521]
[1735911196496,0.28685,3489.2,3489.1,0.28684]
[1735911196798,3.2078,3489.3,3489.0,0.28685]
[1735911196799,0.28686,3489.1,3489.0,0.28685]
[1735911197718,0.28686,3489.0,3488.9,0.28686]
[1735911198113,0.28687,3488.9,3488.8,0.28687]
[1735911198315,3.2078,3489.3,3488.5,3.2078]
[1735911198513,0.28686,3489.0,3488.9,0.28685]
[1735911199312,3.2078,3489.3,3488.5,3.2078]
[1735911199514,0.28688,3488.8,3488.7,0.28687]
[1735911200609,3.2078,3489.3,3488.8,0.28686]
[1735911200610,0.28687,3488.9,3488.8,0.28686]
[1735911200916,5.64741085,3490.0,3488.7,2.68474978]
[1735911201123,4.73987153,3489.8,3489.2,5.89254978]
[1735911201326,4.73987153,3489.8,3489.7,0.2868]
[1735911201510,4.45308153,3489.8,3489.7,0.2868]
[1735911202617,0.28679,3489.8,3489.7,0.2868]
[1735911202822,0.28678,3489.9,3489.8,0.28678]
[1735911205122,0.28682,3489.5,3489.4,0.28682]
[1735911205323,0.28683,3489.4,3489.3,0.28682]
[1735911205625,0.28682,3489.5,3489.4,0.28681]
[1735911206030,0.28678,3489.9,3489.8,0.28678]
[1735911206220,3.2078,3490.1,3489.3,0.71708]
[1735911206525,0.2868,3489.8,3489.7,0.28679]
[1735911209324,3.2078,3490.1,3489.3,0.71708]
[1735911209526,3.37353092,3490.3,3489.6,5.89254978]
[1735911209730,3.37353092,3490.3,3490.2,0.28676]
[1735911211023,0.87835157,3490.3,3490.2,6.46976]
[1735911211330,0.87835157,3490.9,3490.8,0.28671]
[1735911211525,0.87835157,3490.9,3490.8,6.17925978]
[1735911213134,0.71651,3492.1,3491.4,0.28666]
[1735911213330,5.16955153,3492.3,3491.2,3.2078]
[1735911213633,41.08663,3491.8,3491.7,0.28663]
[1735911213835,41.08663,3491.8,3491.2,3.2078]
[1735911213836,40.8,3491.8,3491.2,3.2078]
[1735911214022,41.51657,3491.8,3491.2,3.2078]
[1735911214333,0.28668,3491.2,3491.1,0.28667]
[1735911214528,0.28667,3491.3,3491.2,0.28667]
[1735911215330,3.2078,3491.6,3490.9,1.183]
[1735911215525,0.28666,3491.5,3491.4,0.28665]
[1735911215725,40.8,3491.8,3491.2,3.2078]
[1735911215933,40.8,3491.8,3491.7,0.28663]
[1735911216129,4.45308153,3492.4,3491.7,3.2078]
[1735911216336,4.45308153,3492.4,3492.3,0.28658]
[1735911216534,4.45308153,3492.4,3492.3,2.52750104]
[1735911216834,4.73965153,3492.4,3492.3,0.28658]
[1735911217028,4.73965153,3492.4,3492.1,3.2078]
[1735911217029,4.45308153,3492.4,3492.1,3.2078]
[1735911217331,4.73966153,3492.4,3492.3,0.28658]
[1735911217633,4.73966153,3492.4,3492.2,0.28659]
[1735911217830,2.24092104,3492.9,3492.1,3.2078]
[1735911218033,3.2078,3493.0,3492.3,0.28658]
[1735911218236,3.2078,3493.0,3492.1,3.2078]
[1735911218628,0.28659,3492.3,3492.1,0.2866]
[1735911218837,0.28657,3492.5,3492.1,0.2866]
[1735911219137,0.28659,3492.3,3492.1,0.2866]
[1735911219339,0.28659,3492.3,3491.9,0.28662]
[1735911219638,0.28661,3492.0,3491.8,0.28662]
[1735911219833,3.2078,3492.6,3491.7,3.2078]
[1735911220032,3.2078,3492.6,3491.4,3.86230803]
[1735911220339,41.983,3493.2,3491.4,3.86230803]
[1735911220340,0.28664,3491.7,3491.4,0.28666]
[1735911220634,3.2078,3491.8,3491.3,3.2078]
[1735911220939,3.2078,3491.8,3490.9,6.64420224]
[1735911220940,0.28666,3491.4,3491.2,0.28667]
[1735911221232,0.28666,3491.4,3490.9,3.2078]
[1735911221431,3.2078,3491.8,3490.9,3.2078]
[1735911221432,0.28667,3491.3,3491.2,0.28667]
[1735911222035,3.2078,3491.8,3490.9,3.2078]
[1735911222337,0.28666,3491.4,3491.3,0.28666]
[1735911222637,40.8,3491.4,3491.3,0.28666]
[1735911222839,41.08666,3491.4,3490.9,3.2078]
[1735911223032,40.8,3491.4,3491.3,0.28666]
[1735911223929,0.28665,3491.5,3491.3,0.28666]
[1735911224135,0.28664,3491.7,3491.4,0.28666]
[1735911224334,0.28662,3491.9,3491.4,0.28665]
[1735911224638,0.28665,3491.5,3491.4,0.28665]
[1735911224840,40.8,3491.9,3491.3,3.2078]
[1735911225033,0.28664,3491.7,3491.6,0.28664]
[1735911225538,40.8,3491.9,3491.3,3.2078]
[1735911225838,41.08662,3491.9,3491.8,0.28662]
[1735911226338,40.8,3491.9,3491.3,3.2078]
[1735911226531,0.28664,3491.7,3491.6,0.28664]
[1735911226727,0.28663,3491.8,3491.7,0.28663]
[1735911226932,0.28664,3491.7,3491.6,0.28663]
[1735911227639,0.28663,3491.8,3491.7,0.28663]
[1735911227937,0.28664,3491.7,3491.6,0.28664]
[1735911228135,40.8,3491.9,3491.3,3.2078]
[1735911228331,0.28666,3491.5,3491.0,2.67930803]
[1735911228631,0.28666,3491.4,3491.3,0.28666]
[1735911228831,3.2078,3491.6,3490.9,3.2078]
[1735911229038,0.28668,3491.2,3491.1,0.28668]
[1735911229546,0.28668,3491.2,3491.1,0.28667]
[1735911229838,0.71663,3491.5,3490.6,2.67930803]
[1735911230140,0.28668,3491.2,3491.1,0.28667]
[1735911230937,0.28665,3491.5,3491.4,0.28666]
[1735911231237,0.28667,3491.3,3491.2,0.28667]
[1735911231439,0.28666,3491.4,3491.3,0.28665]
[1735911231635,3.2078,3491.6,3491.5,0.28665]
[1735911231944,0.28664,3491.7,3491.6,0.28664]
[1735911232240,0.28661,3492.0,3491.9,0.2866]
[1735911232438,40.8,3492.1,3492.0,0.28661]
[1735911232639,0.28658,3492.3,3492.2,0.28658]
[1735911232935,0.28661,3492.0,3491.6,0.28664]
[1735911233128,0.28661,3492.0,3491.5,0.71662]
[1735911233329,44.0078,3492.4,3491.3,3.92446]
[1735911233639,0.28663,3491.8,3491.7,0.28662]
[1735911234132,3.2078,3492.0,3491.3,3.92446]
[1735911234331,0.28663,3491.8,3491.7,0.28662]
[1735911235134,3.2078,3492.0,3491.3,3.92446]
[1735911235135,0.28662,3491.9,3491.8,0.28662]
[1735911235335,0.28662,3491.9,3491.3,3.92446]
[1735911235336,0.28663,3491.8,3491.7,0.28662]
[1735911236141,0.28665,3491.6,3491.5,0.28664]
[1735911236340,3.2078,3492.0,3491.0,0.71672]
[1735911236541,0.28667,3491.3,3491.2,0.28667]
[1735911238750,3.49445,3491.6,3491.5,0.28665]
[1735911238944,0.28666,3491.5,3491.4,0.28665]
[1735911239446,41.08666,3491.5,3491.4,0.28665]
[1735911239943,3.2078,3492.6,3491.5,0.71663]
[1735911240341,3.2078,3492.2,3492.0,0.2866]
[1735911240537,3.4944,3492.2,3492.0,0.2866]
[1735911240941,3.4944,3492.2,3492.1,0.2866]
[1735911241150,3.2078,3492.2,3492.1,0.2866]
[1735911241350,40.8,3492.5,3491.7,0.71657]
[1735911241351,0.28658,3492.4,3491.7,0.71657]
[1735911241551,40.8,3492.5,3492.4,0.28657]
[1735911241855,0.28652,3493.1,3493.0,0.28652]
[1735911242053,0.28653,3493.0,3492.9,0.28653]
[1735911242356,41.08653,3493.0,3492.9,0.28653]
[1735911243356,40.8,3493.0,3492.9,0.28653]
[1735911247456,41.08653,3493.0,3492.9,0.28653]
[1735911248252,40.8,3493.0,3492.3,3.92425]
[1735911248464,5.88644478,3492.4,3491.3,4.41465521]
[1735911248756,3.49444,3491.7,3491.6,0.28664]
[1735911248956,3.49444,3491.7,3491.3,4.70131521]
[1735911248957,0.28665,3491.5,3491.3,4.70131521]
[1735911249258,0.28666,3491.4,3491.3,4.41465521]
[1735911249457,5.28666,3491.4,3491.3,4.41465521]
[1735911249653,6.46466,3491.4,3491.3,4.41465521]
[1735911249956,0.28669,3491.1,3490.9,0.28669]
[1735911250158,40.8,3491.0,3490.4,3.2078]
[1735911250347,3.49451,3490.7,3490.1,4.41465521]
[1735911250553,3.2078,3490.7,3490.6,0.28672]
[1735911250953,3.2078,3490.7,3490.5,0.28673]
[1735911251653,40.8,3491.0,3490.3,0.28675]
[1735911251955,40.8,3491.0,3490.9,0.2867]
[1735911252161,0.28667,3491.3,3490.6,3.2078]
[1735911252461,0.28667,3491.3,3491.0,0.28669]
[1735911252851,40.8,3491.5,3491.0,0.28669]
[1735911252852,0.28668,3491.2,3491.0,0.28669]
[1735911253258,0.28667,3491.2,3490.7,0.28671]
[1735911253456,0.28667,3491.2,3490.6,3.2078]
[1735911253659,0.28668,3491.1,3490.6,3.2078]
[1735911253861,0.28671,3490.8,3490.7,0.28671]
[1735911254050,3.2078,3491.2,3490.5,2.67864478]
[1735911254255,0.28668,3491.1,3490.9,0.2867]
[1735911254457,3.2078,3491.2,3490.9,0.2867]
[1735911254962,0.28669,3491.0,3490.9,0.2867]
[1735911255267,40.8,3491.5,3491.1,0.28668]
[1735911255268,0.28665,3491.5,3491.1,0.28668]
[1735911255562,0.28669,3491.1,3490.9,0.28669]
[1735911255751,0.28669,3491.1,3490.6,3.2078]
[1735911255956,0.28668,3491.2,3491.0,0.28669]
[1735911256561,3.2078,3491.6,3490.9,2.67864478]
[1735911256757,0.28666,3491.5,3491.4,0.28666]
[1735911256953,0.28668,3491.2,3491.0,3.2078]
[1735911257158,0.28668,3491.1,3491.0,0.28669]
[1735911257456,0.28669,3491.1,3490.9,0.28669]
[1735911257960,3.2078,3491.6,3490.6,3.2078]
[1735911258467,0.28669,3491.0,3490.9,0.28669]
[1735911259162,3.2078,3491.6,3490.6,3.2078]
[1735911259362,0.2867,3491.0,3490.6,3.2078]
[1735911259565,3.2078,3491.6,3491.0,0.28669]
[1735911259566,0.28669,3491.1,3491.0,0.28669]
[1735911259954,3.2078,3491.6,3490.6,3.2078]
[1735911260160,3.2078,3491.6,3491.0,0.28668]
[1735911260369,0.28668,3491.1,3491.0,0.28668]
[1735911260763,3.2078,3491.6,3490.6,3.2078]
[1735911260962,3.2078,3491.6,3491.1,0.28668]
[1735911260963,0.28668,3491.2,3491.1,0.28668]
[1735911261268,0.28668,3491.2,3490.6,3.2078]
[1735911261467,0.28668,3491.2,3491.0,0.28669]
[1735911261760,3.2078,3491.6,3490.6,3.2078]
[1735911261961,0.28669,3491.1,3491.0,0.28669]
[1735911262162,0.28668,3491.2,3491.1,0.28668]
[1735911262868,0.28668,3491.1,3491.0,0.28669]
[1735911263562,0.28669,3491.0,3490.9,0.28669]
[1735911263861,0.28671,3490.8,3490.7,0.28671]
[1735911264062,0.28671,3490.7,3490.6,3.2078]
[1735911264876,0.28676,3490.2,3490.1,7.38005999]
[1735911265472,0.28676,3490.2,3490.1,4.41465521]
[1735911266370,3.2078,3490.3,3489.7,0.28679]
[1735911266561,0.2868,3489.6,3489.5,3.4946]
[1735911266765,0.2868,3489.8,3489.7,0.28679]
[1735911267070,0.2868,3489.7,3489.6,0.28679]
[1735911267965,0.28679,3489.9,3489.8,0.28678]
[1735911268270,3.2078,3490.3,3489.5,5.45201944]
[1735911268563,0.2868,3489.7,3489.6,0.28679]
[1735911269169,0.71691,3490.2,3489.8,0.28678]
[1735911269363,3.2078,3490.3,3489.5,5.45201944]
[1735911269569,0.28678,3490.1,3490.0,0.28677]
[1735911269764,3.2078,3490.3,3489.5,5.45201944]
[1735911269966,0.2868,3489.8,3489.7,0.28679]
[1735911271169,0.2868,3489.7,3489.6,0.2868]
[1735911271572,0.28679,3489.8,3489.7,0.28679]
[1735911272266,0.28678,3490.0,3489.9,0.28677]
[1735911274171,3.92469,3490.3,3489.1,3.2078]
[1735911274471,0.2868,3489.8,3489.7,0.28679]
[1735911276768,0.2868,3489.7,3489.6,0.2868]